{"text_format":"1","workbook":"xlsx","n_sheets":10,"sheets":["Instructions","Offshore production","Onshore production","Onshore processing","Onshore trans comp","Underground storage","NGL","LNG storage","LNG import export","Nat gas distribution"],"not_rendered":{"charts":0,"images":2,"macros":1,"external_links":0,"defined_names":2,"comments":0,"pivot_tables":0},"unopened":[],"bounds":{"document_bytes":16777216,"sheet_cells":100000,"rows_first":2000,"rows_last":500,"rows_between":2000,"halvings":0,"cell_chars":16384,"cell_head_chars":4096},"cells_cut":0,"cells_raw":0,"read":"whole","date_system":"1900"}

{"sheet":"Instructions","index":0,"n_rows":39,"n_cols":3,"rows_kept":39,"cut":false,"hidden":false,"merged":[]}
[]
[null,null,"Subarticle 5. Petroleum and Natural Gas Systems"]
[null,null,"Version: Cal e-GGRT R.05"]
[null,null,"Instructions for the Use of This Reporting Workbook"]
[null,null,"This spreadsheet is protected and contains locked cells to ensure that the user does not inadvertently alter any of the included formulas and/or calculations. Any modified workbook will not be accepted by the Air Resources Board for reporting purposes."]
[]
[null,null,"Please use this workbook to report emissions to the Air Resources Board for Petroleum and Natural Gas Systems. The workbook contains the following individual spreadsheets, representing the various Industry Segments. Click the button below to be brought to the corresponding worksheet."]
[]
[null,null,"Offshore Petroleum and Natural Gas Production - Offshore production"]
[null,null,"Onshore Petroleum and Natural Gas Production - Onshore production"]
[null,null,"Onshore Natural Gas Processing - Onshore processing"]
[null,null,"Onshore Natural Gas Transmission Compression - Onshore trans comp"]
[null,null,"Underground Natural Gas Storage - Underground storage"]
[null,null,"Natural Gas Liquid Fractionating - NGL"]
[null,null,"Liquefied Natural Gas Storage - LNG storage"]
[null,null,"Liquefied Natural Gas Import and Export - LNG Import export"]
[null,null,"Natural Gas Distribution - Nat gas distribution"]
[]
[null,null,"Cells have been color coded to indicate where user inputs are required, and where results of calculations can be found. The following color coding has been used:"]
[]
[null,null,"Light green cells require user inputs. These inputs may be text or numerical, but are required for either reporting or execution of equations."]
[]
[null,null,"White cells with red outline are locked and contain the results of individual equations and final emissions results."]
[]
[null,null,"When completed, please follow the instructions below to export and upload data to xml."]
[]
[null,null,"Guidance for Exporting Data to XML\n"]
[null,null,"1.  Enter all data for each worksheet within the workbook where indicated. \n     Ensure that all columns of data are completed before exporting your file.  Only completed rows will be imported into the Tool."]
[null,null,"2.  Save your workbook."]
[null,null,"3.  Export Excel data to XML."]
[]
[null,null,"For Excel 2003,  select the menu Data / XML / Export. "]
[]
[null,null,"For Excel 2007 and Excel 2010,  right click within a linked (green) cell. Select XML / Export."]
[]
[null,null,"4.  Provide a file name and complete the process. The generated XML file is the file that you will attach and upload within into Cal e-GGRT."]
[null,null,"5.  Within Cal e-GGRT, navigate to the subpart W overview page for your facility."]
[null,null,"6.  Upload your newly exported XML document.  Do not upload your Excel template."]
[null,null,"7.  If successfully attached, the interface will refresh and display the newly added document.  If there are problems with the xml data being uploaded, validation messages will be displayed describing the problem(s)."]

{"sheet":"Offshore production","index":1,"n_rows":18,"n_cols":5,"rows_kept":18,"cut":false,"hidden":false,"merged":[[2,1,2,2]]}
["Offshore Petroleum and Natural Gas Production Reporting"]
[]
["Facility Name"]
[]
["Source Category","CO2 Emissions (tCO2)","CH4 Emissions (tCH4)","N2O Emissions (tN2O)","Total CO2e"]
["Total",{"$f":"SUM(B7:B18)","v":0},{"$f":"SUM(C7:C18)","v":0},{"$f":"SUM(D7:D18)","v":0},{"$f":"SUM(E7:E18)","v":0}]
["Combustion Flares",null,null,null,{"$f":"B7+C7*21+D7*310","v":0}]
["Fugitives (Equipment Leaks)",null,null,null,{"$f":"B8+C8*21+D8*310","v":0}]
["Glycol Dehydrators",null,null,null,0]
["Losses from Flashing",null,null,null,0]
["Mud Degassing",null,null,null,0]
["Pneumatic Pumps",null,null,null,0]
["Pressure/Level Controllers",null,null,null,0]
["Storage Tanks",null,null,null,0]
["Cold Vents",null,null,null,0]
["Logistic supply and transport emissions",null,null,null,{"$f":"B16+C16*21+D16*310","v":0}]
["Minor Sources",null,null,null,0]
["Other",null,null,null,0]

{"sheet":"Onshore production","index":2,"n_rows":11,"n_cols":136,"rows_kept":11,"cut":false,"hidden":false,"merged":[[6,76,6,82],[6,83,6,85],[6,13,6,15],[6,10,6,12],[2,0,2,2],[3,0,3,4],[4,0,4,5],[6,1,6,3],[6,4,6,6],[6,7,6,9],[6,16,6,22],[6,23,6,29],[6,44,6,47],[6,37,6,43],[6,51,6,54],[6,73,6,75],[6,30,6,36],[6,55,6,58],[6,66,6,72],[6,59,6,65],[6,48,6,50],[3,135,5,143],[6,92,6,95],[6,99,6,101],[6,86,6,87],[6,88,6,91],[6,96,6,98],[6,130,6,135],[5,96,5,101],[6,124,6,129],[6,121,6,123],[6,115,6,120],[6,112,6,114],[6,102,6,110]]}
["Onshore Petroleum and Natural Gas Production",null,null,null,null,null,{"$f":"F3","v":1}]
[]
["TO ADD ROW(s) TO THE TABLE, enter the number of rows to be added and click the Add Row(s) button.  ",null,null,"Rows to Add to the table below:",null,1]
["TO DELETE EXTRANEOUS ROWS, click the Delete Last Row button.  Each click will delete one row from the bottom of the table. ",null,null,null,null,null,null,null,null,null,null,null,null,null,null,null,null,null,null,null,null,null,null,null,null,null,null,null,null,null,null,null,null,null,null,null,null,null,null,null,null,null,null,null,null,null,null,null,null,null,null,null,null,null,null,null,null,null,null,null,null,null,null,null,null,null,null,null,null,null,null,null,null,null,null,null,null,null,null,null,null,null,null,null,null,null,null,null,null,null,null,null,null,null,null,null,null,null,null,null,null,null,null,null,null,null,null,null,null,null,null,null,null,null,null,null,null,null,null,null,null,null,null,null,null,null,null,null,null,null,null,null,null,null,null,"* Note: An onshore natural gas processing facility that has an annual average throughput of 25 MMscf per day or greater must use this Onshore Production tab to report Natural Gas Processing covered product data, as applicable (95156(d)). Applicable NGL product data must also be reported in the NGL tab (95156(c))."]
["NOTE: You will need to enable macros for either button to work.  If you do not wish to enable macros, contact ARB for an alternative method of adding rows to the table."]
[null,null,null,null,null,null,null,null,null,null,null,null,null,null,null,null,null,null,null,null,null,null,null,null,null,null,null,null,null,null,null,null,null,null,null,null,null,null,null,null,null,null,null,null,null,null,null,null,null,null,null,null,null,null,null,null,null,null,null,null,null,null,null,null,null,null,null,null,null,null,null,null,null,null,null,null,null,null,null,null,null,null,null,null,null,null,null,null,null,null,null,null,null,null,null,null,"Report equipment leaks using EITHER population counts [95153(o)] or leak detection [95153(p)]"]
[null,"Metered natural gas high bleed pneumatic device and pneumatic pump venting",null,null,"Metered natural gas low bleed pneumatic device and pneumatic pump venting",null,null,"Non-metered natural gas high bleed pneumatic device venting",null,null,"Non-metered natural gas low bleed pneumatic device venting",null,null,"Well venting for liquids unloading",null,null,"Gas well venting during well completions without hydraulic fracturing",null,null,null,null,null,null,"Gas well venting during well completions with hydraulic fracturing",null,null,null,null,null,null,"Gas well venting during well workovers without hydraulic fracturing",null,null,null,null,null,null,"Gas well venting during well workovers with hydraulic fracturing",null,null,null,null,null,null,"Flare stack and other destruction device emissions",null,null,null,"Dump Valves (vented emissions resulting from separator dump valve malfunctions)",null,null,"Reciprocating compressor venting (≥250hp) ",null,null,null,"Reciprocating compressor venting (<250hp) ",null,null,null,"Well testing venting and flaring",null,null,null,null,null,null,"Associated gas venting and flaring from produced hydrocarbons",null,null,null,null,null,null,"Equipment and pipeline blowdowns as per 95152(c)(7)",null,null,"Dehydrator vents",null,null,null,null,null,null,"EOR injection pump blowdown",null,null,"Acid gas removal vents",null,"Centrifugal compressor venting  (≥250hp)",null,null,null,"Centrifugal compressor venting  (<250hp)",null,null,null,"Equipment leaks from valves, connectors, open ended lines, pressure relief valves, and meters using population counts",null,null,"Equipment leaks from valves, connectors, open ended lines, pressure relief valves, and meters using leak detection",null,null,"Crude Oil, Condensate, and Produced Water Dissolved CO2 and CH4",null,null,null,null,null,null,null,null,null,"Cogeneration Sources",null,null,"Steam Generator Sources",null,null,null,null,null,"Steam Used (not Generated at Facility)",null,null,"Electricity Generation (excluding Cogen)",null,null,null,null,null,"Covered Product Data"]
["Contiguous Property/Sub-Facility Name:","CO2 Emissions (tCO2)","CH4 Emissions (tCH4)","Total CO2e","CO2 Emissions (tCO2)","CH4 Emissions (tCH4)","Total CO2e","CO2 Emissions (tCO2)","CH4 Emissions (tCH4)","Total CO2e","CO2 Emissions (tCO2)","CH4 Emissions (tCH4)","Total CO2e","CO2 Emissions (tCO2)","CH4 Emissions (tCH4)","Total CO2e","Vent CO2 Emissions (tCO2)","Vent CH4 Emissions (tCH4)","Vent Total CO2e","Flare CO2 Emissions (tCO2)","Flare CH4 Emissions (tCH4)","Flare N2O Emissions (tN2O)","Flare Total CO2e","Vent CO2 Emissions (tCO2)","Vent CH4 Emissions (tCH4)","Vent Total CO2e","Flare CO2 Emissions (tCO2)","Flare CH4 Emissions (tCH4)","Flare N2O Emissions (tN2O)","Flare Total CO2e","Vent CO2 Emissions (tCO2)","Vent CH4 Emissions (tCH4)","Vent Total CO2e","Flare CO2 Emissions (tCO2)","Flare CH4 Emissions (tCH4)","Flare N2O Emissions (tN2O)","Flare Total CO2e","Vent CO2 Emissions (tCO2)","Vent CH4 Emissions (tCH4)","Vent Total CO2e","Flare CO2 Emissions (tCO2)","Flare CH4 Emissions (tCH4)","Flare N2O Emissions (tN2O)","Flare Total CO2e","CO2 Emissions (tCO2)","CH4 Emissions (tCH4)","N2O Emissions (tN2O)","Total CO2e","Vent CO2 Emissions (tCO2)","Vent CH4 Emissions (tCH4)","Vent Total CO2e","CO2 Emissions (tCO2)","CH4 Emissions (tCH4)","N2O Emissions (tN2O)","Total CO2e","CO2 Emissions (tCO2)","CH4 Emissions (tCH4)","N2O Emissions (tN2O)","Total CO2e","Vent CO2 Emissions (tCO2)","Vent CH4 Emissions (tCH4)","Vent Total CO2e","Flare CO2 Emissions (tCO2)","Flare CH4 Emissions (tCH4)","Flare N2O Emissions (tN2O)","Flare Total CO2e","Vent CO2 Emissions (tCO2)","Vent CH4 Emissions (tCH4)","Vent Total CO2e","Flare CO2 Emissions (tCO2)","Flare CH4 Emissions (tCH4)","Flare N2O Emissions (tN2O)","Flare Total CO2e","CO2 Emissions (tCO2)","CH4 Emissions (tCH4)","Total CO2e","Vent CO2 Emissions (tCO2)","Vent CH4 Emissions (tCH4)","Vent Total CO2e","Flare CO2 Emissions (tCO2)","Flare CH4 Emissions (tCH4)","Flare N2O Emissions (tN2O)","Flare Total CO2e","CO2 Emissions (tCO2)","CH4 Emissions (tCH4)","Total CO2e","CO2 Emissions (tCO2)","Total CO2e","CO2 Emissions (tCO2)","CH4 Emissions (tCH4)","N2O Emissions (tCH4)","Total CO2e","CO2 Emissions (tCO2)","CH4 Emissions (tCH4)","N2O Emissions (tCH4)","Total CO2e","CO2 Emissions (tCO2)","CH4 Emissions (tCH4)","Total CO2e","CO2 Emissions (tCO2)","CH4 Emissions (tCH4)","Total CO2e","Crude Oil CO2 Emissions (tCO2)","Crude Oil CH4 Emissions (tCH4)","Crude Oil Total CO2e","Condensate CO2 Emissions (tCO2)","Condensate CH4 Emissions (tCH4)","Condensate Total CO2e","Produced Water CO2 Emissions (tCO2)","Produced Water CH4 Emissions (tCH4)","Produced Water Total CO2e","Volume Produced Water (bbls)","Total thermal output (MMBtu)","Net Electricity Generation (MWh)","Electricity Generation not consumed (MWh)","Total thermal energy generated (MMBtu)","Emission factor (MT CO2e/ MMBtu)","Total CO2e for total thermal energy generated (MT CO2e)","Thermal energy not consumed (MMBtu)","Emission factor (MT CO2e/ MMBtu)","Total CO2e for thermal energy not consumed (MT CO2e)","Total Steam Used but not Generated (MMBtu)","Emission factor (MT CO2e/ MMBtu)","Total CO2e for total steam used but not generated (MT CO2e)","Net Electricity Generation (MWh)","Emission factor (MT CO2e/ MWh)","Total CO2e for Net Electricity Generation","Electricity not consumed (exported) in MWh","Emission factor (MT CO2e/ MWh)","Total CO2e for Electricity not consumed (MT CO2e)","Barrels of crude oil produced using thermal enhanced oil recovery (covered product data)","Barrels of crude oil produced using methods other than thermal enhanced oil recovery (covered product data)","MMBtu of associated gas produced using thermal enhanced oil recovery (covered product data)","MMBtu of associated gas produced using methods other than thermal enhanced oil recovery (covered product data)","MMBtu of dry gas produced (covered product data)","NG Processors (95156(d))\nMMBtu associated gas, natural gas and waste gases processed (covered product data)*"]
["Total",{"$f":"SUM(B11:B11)","v":0},0,0,0,0,0,0,0,0,0,0,0,0,0,0,0,0,0,0,0,0,0,0,0,0,0,0,0,0,0,0,0,{"$f":"SUM(AH11:AH11)","v":0},0,0,0,0,0,0,0,0,0,0,0,0,0,0,0,0,0,0,0,0,0,0,0,0,0,0,0,0,0,0,0,{"$f":"SUM(BN11:BN11)","v":0},0,0,0,0,0,0,0,0,0,0,0,0,0,0,0,0,0,0,0,0,0,0,0,0,0,0,0,0,0,0,0,{"$f":"SUM(CT11:CT11)","v":0},0,0,0,0,0,0,0,0,0,0,0,0,0,0,0,0,0,0,null,0,0,null,0,0,null,0,0,null,0,0,null,{"$f":"SUM(DZ11:DZ11)","v":0},0,0,0,0,0,0]
["Sub_Facility_Name","CO2_Emissions","CH4_Emissions","Total_CO2e","CO2_Emissions2","CH4_Emissions3","Total_CO2e4","CO2_Emissions3","CH4_Emissions4","Total_CO2e5","CO2_Emissions26","CH4_Emissions37","Total_CO2e49","CO2_Emissions5","CH4_Emissions6","Total_CO2e7","CO2_Emissions8","CH4_Emissions9","Total_CO2e10","CO2_Emissions11","CH4_Emissions12","N2O_Emissions","Total_CO2e13","CO2_Emissions14","CH4_Emissions15","Total_CO2e16","CO2_Emissions17","CH4_Emissions18","N2O_Emissions19","Total_CO2e20","CO2_Emissions21","CH4_Emissions22","Total_CO2e23","CO2_Emissions24","CH4_Emissions25","N2O_Emissions26","Total_CO2e27","CO2_Emissions28","CH4_Emissions29","Total_CO2e30","CO2_Emissions31","CH4_Emissions32","N2O_Emissions33","Total_CO2e34","CO2_Emissions35","CH4_Emissions36","N2O_Emissions37","Total_CO2e38","CO2_Emissions39","CH4_Emissions40","Total_CO2e41","CO2_Emissions46","CH4_Emissions47","Column6","Total_CO2e48","CO2_Emissions462","CH4_Emissions473","Column65","Total_CO2e486","CO2_Emissions49","CH4_Emissions50","Total_CO2e51","CO2_Emissions52","CH4_Emissions53","N2O_Emissions54","Total_CO2e55","CO2_Emissions56","CH4_Emissions57","Total_CO2e58","CO2_Emissions59","CH4_Emissions60","N2O_Emissions61","Total_CO2e62","CO2_Emissions63","CH4_Emissions64","Total_CO2e65","CO2_Emissions632","CH4_Emissions643","Total_CO2e654","CO2_Emissions66","CH4_Emissions67","N2O_Emissions68","Total_CO2e69","CO2_Emissions70","CH4_Emissions71","Total_CO2e72","CO2_Emissions73","Total_CO2e75","CO2_Emissions79","CH4_Emissions80","N2O_Emissions81","Total_CO2e82","CO2_Emissions792","CH4_Emissions803","N2O_Emissions814","Total_CO2e825","CO2_Emissions83","CH4_Emissions84","Total_CO2e85","CO2_Emissions832","CH4_Emissions843","Total_CO2e854","CO2_Emissions86","CH4_Emissions87","Total_CO2e88","CO2_Emissions863","CH4_Emissions874","Total_CO2e885","CO2_Emissions862","CH4_Emissions873","Total_CO2e884","CH4_Emissions8732","Column1","Column2","Column3","Column4","Column42","Column5","Column52","Column522","Column53","Column54","Column542","Column55","Column56","Column562","Column57","Column58","Column582","Column59","Column60","Column61","Column612","Column613","Column614","Column615"]
[null,null,null,{"$f":"B11+C11*21","v":0},null,null,{"$f":"E11+F11*21","v":0},null,null,{"$f":"H11+I11*21","v":0},null,null,{"$f":"K11+L11*21","v":0},null,null,{"$f":"N11+O11*21","v":0},null,null,{"$f":"Q11+R11*21","v":0},null,null,null,{"$f":"T11+U11*21+V11*310","v":0},null,null,{"$f":"X11+Y11*21","v":0},null,null,null,{"$f":"AA11+AB11*21+AC11*310","v":0},null,null,{"$f":"AE11+AF11*21","v":0},null,null,null,{"$f":"AH11+AI11*21+AJ11*310","v":0},null,null,{"$f":"AL11+AM11*21","v":0},null,null,null,{"$f":"AO11+AP11*21+AQ11*310","v":0},null,null,null,{"$f":"AS11+AT11*21+AU11*310","v":0},null,null,{"$f":"AW11+AX11*21","v":0},null,null,null,{"$f":"AZ11+BA11*21+BB11*310","v":0},null,null,null,{"$f":"BD11+BE11*21+BF11*310","v":0},null,null,{"$f":"BH11+BI11*21","v":0},null,null,null,{"$f":"BK11+BL11*21+BM11*310","v":0},null,null,{"$f":"BO11+BP11*21","v":0},null,null,null,{"$f":"BR11+BS11*21+BT11*310","v":0},null,null,{"$f":"BV11+BW11*21","v":0},null,null,{"$f":"BY11+BZ11*21","v":0},null,null,null,{"$f":"CB11+CC11*21+CD11*310","v":0},null,null,{"$f":"CF11+CG11*21","v":0},null,{"$f":"CI11","v":0},null,null,null,{"$f":"CK11+CL11*21+CM11*310","v":0},null,null,null,{"$f":"CO11+CP11*21+CQ11*310","v":0},null,null,{"$f":"CS11+CT11*21","v":0},null,null,{"$f":"CV11+CW11*21","v":0},null,null,{"$f":"CY11+CZ11*21","v":0},null,null,{"$f":"DB11+DC11*21","v":0},null,null,{"$f":"DE11+DF11*21","v":0},null,null,null,null,null,null,{"$f":"DL11*DM11","v":0},null,null,{"$f":"DO11*DP11","v":0},null,null,{"$f":"DR11*DS11","v":0},null,null,{"$f":"DU11*DV11","v":0},null,null,{"$f":"DX11*DY11","v":0}]

{"sheet":"Onshore processing","index":3,"n_rows":22,"n_cols":5,"rows_kept":22,"cut":false,"hidden":false,"merged":[[2,1,2,2],[19,0,19,4],[21,0,21,4]]}
["Onshore Natural Gas Processing"]
[]
["Facility Name"]
[]
["Source Category","CO2 Emissions (tCO2)","CH4 Emissions (tCH4)","N2O Emissions (tN2O)","Total CO2e"]
["Total",{"$f":"SUM(B7:B18)","v":0},{"$f":"SUM(C7:C18)","v":0},{"$f":"SUM(D7:D18)","v":0},{"$f":"SUM(E7:E18)","v":0}]
["Reciprocating compressor venting (≥250hp)",null,null,0,{"$f":"B7+C7*21+D7*310","v":0}]
["Reciprocating compressor venting (<250hp)",null,null,0,0]
["Reciprocating compressor flaring",null,null,null,0]
["Centrifugal compressor venting (≥250hp)",null,null,0,{"$f":"B10+C10*21+D10*310","v":0}]
["Centrifugal compressor venting (<250hp)",null,null,0,{"$f":"B11+C11*21+D11*310","v":0}]
["Centrifugal compressor flaring",null,null,null,0]
["Equipment and pipeline blowdowns",null,null,0,0]
["Dehydrator vents",null,null,0,0]
["Dehydrator flaring",null,null,null,0]
["Acid gas removal vents",null,null,0,0]
["Equipment leaks from valves, connectors, open ended lines, pressure relief valves, and meters using leak detection",null,null,0,0]
["Flare Stack or Other Destruction Device Emissions",null,null,null,{"$f":"B18+C18*21+D18*310","v":0}]
[]
["Note: A natural gas processing facility or an onshore petroleum and natural gas production facility with a natural gas processing plant that process less than 25 MMscf per day, or a natural gas liquid fractionating facility should use the NGL tab to report NGL covered product data, as applicable (95156(c))."]
[]
["Note: An onshore natural gas processing facility that has an annual average throughput of 25 MMscf per day or greater should use the Onshore Production tab to report Natural Gas Processing covered product data, as applicable (95156(d)). These facilities must also use the NGL tab to report NGL covered product data pursuant to 95156(c)."]

{"sheet":"Onshore trans comp","index":4,"n_rows":20,"n_cols":5,"rows_kept":20,"cut":false,"hidden":false,"merged":[[2,1,2,2]]}
["Onshore Natural Gas Transmission Compression"]
[]
["Facility Name"]
[]
["Source Category","CO2 Emissions (tCO2)","CH4 Emissions (tCH4)","N2O Emissions (tN2O)","Total CO2e"]
["Total",{"$f":"SUM(B7:B20)","v":0},{"$f":"SUM(C7:C20)","v":0},{"$f":"SUM(D7:D20)","v":0},{"$f":"SUM(E7:E20)","v":0}]
["Reciprocating compressor venting (≥250hp)",null,null,0,{"$f":"B7+C7*21+D7*310","v":0}]
["Reciprocating compressor venting (<250hp)",null,null,0,{"$f":"B8+C8*21+D8*310","v":0}]
["Reciprocating compressor flaring",null,null,null,0]
["Centrifugal compressor venting (≥250hp)",null,null,0,0]
["Centrifugal compressor venting (<250hp)",null,null,0,0]
["Centrifugal compressor flaring",null,null,null,0]
["Transmission storage tanks venting",null,null,0,0]
["Flare stack and other destruction device emissions",null,null,null,0]
["Equipment and pipeline blowdowns",null,null,0,0]
["Metered natural gas high bleed pneumatic device and pump venting",null,null,0,0]
["Metered natural gas low bleed pneumatic device and pump venting",null,null,0,0]
["Non-metered natural gas high bleed pneumatic device venting",null,null,0,{"$f":"B18+C18*21+D18*310","v":0}]
["Non-metered natural gas low bleed pneumatic device venting",null,null,0,{"$f":"B19+C19*21+D19*310","v":0}]
["Equipment leaks from valves, connectors, open ended lines, pressure relief valves, and meters using leak detection",null,null,0,0]

{"sheet":"Underground storage","index":5,"n_rows":20,"n_cols":5,"rows_kept":20,"cut":false,"hidden":false,"merged":[[2,1,2,2]]}
["Underground Natural Gas Storage"]
[]
["Facility Name"]
[]
["Source Category","CO2 Emissions (tCO2)","CH4 Emissions (tCH4)","N2O Emissions (tN2O)","Total CO2e"]
["Total",{"$f":"SUM(B7:B20)","v":0},{"$f":"SUM(C7:C20)","v":0},{"$f":"SUM(D7:D20)","v":0},{"$f":"SUM(E7:E20)","v":0}]
["Reciprocating compressor venting (≥250hp)",null,null,0,{"$f":"B7+C7*21+D7*310","v":0}]
["Reciprocating compressor venting (<250hp)",null,null,0,0]
["Reciprocating compressor flaring",null,null,null,0]
["Centrifugal compressor venting (≥250hp)",null,null,0,0]
["Centrifugal compressor venting (<250hp)",null,null,0,0]
["Centrifugal compressor flaring",null,null,null,0]
["Metered natural gas high bleed pneumatic device and pump venting",null,null,0,0]
["Metered natural gas low bleed pneumatic device and pump venting",null,null,0,0]
["Non-metered natural gas high bleed pneumatic device venting",null,null,0,0]
["Non-metered natural gas low bleed pneumatic device venting",null,null,0,0]
["Equipment leaks from valves, connectors, open ended lines, pressure relief valves, and meters, using leak detection ",null,null,0,0]
["Equipment leaks from valves, connectors, open ended lines, and pressure relief valves using population counts",null,null,0,0]
["Equipment and pipeline blowdowns",null,null,0,0]
["Flare stack and other destruction device emissions",null,null,null,0]

{"sheet":"NGL","index":6,"n_rows":23,"n_cols":2,"rows_kept":23,"cut":false,"hidden":false,"merged":[[2,1,2,2],[20,0,20,4],[22,0,22,4]]}
["Natural Gas Fractionating or Processing Facility - Additional Data Reporting"]
[]
["Facility Name"]
[]
[]
["Source Category (covered product data)","Barrels corrected to 60 degrees fahrenheit"]
["Total",{"$f":"SUM(B8:B19)","v":0}]
["Ethane"]
["Ethylene"]
["Propane"]
["Propylene"]
["Butane"]
["Butylene"]
["Isobutane"]
["Isobutylene"]
["Pentanes plus"]
["Natural Gasoline"]
["Liquified Petroleum Gas"]
["Bulk natural gas liquids not included in the preceeding list"]
[]
["Note: A natural gas processing facility or an onshore petroleum and natural gas production facility with a natural gas processing plant that process less than 25 MMscf per day, or a natural gas liquid fractionating facility must use this NGL table to report NGL covered product data, as applicable (95156(c))."]
[]
["An onshore natural gas processing facility that has an annual average throughput of 25 MMscf per day or greater should use the Onshore Production tab to report additional Natural Gas Processing covered product data, as applicable (95156(d)). These facilities must also use this NGL tab to report NGL covered product data pursuant to 95156(c)."]

{"sheet":"LNG storage","index":7,"n_rows":16,"n_cols":5,"rows_kept":16,"cut":false,"hidden":false,"merged":[[2,1,2,2]]}
["LNG Storage"]
[]
["Facility Name"]
[]
["Source Category","CO2 Emissions (tCO2)","CH4 Emissions (tCH4)","N2O Emissions (tN2O)","Total CO2e"]
["Total",{"$f":"SUM(B7:B16)","v":0},{"$f":"SUM(C7:C16)","v":0},{"$f":"SUM(D7:D16)","v":0},{"$f":"SUM(E7:E16)","v":0}]
["Reciprocating compressor venting (≥250hp)",null,null,0,{"$f":"B7+C7*21+D7*310","v":0}]
["Reciprocating compressor venting (<250hp)",null,null,0,0]
["Reciprocating compressor flaring",null,null,null,0]
["Centrifugal compressor venting (≥250hp)",null,null,0,0]
["Centrifugal compressor venting (<250hp)",null,null,0,{"$f":"B11+C11*21+D11*310","v":0}]
["Centrifugal compressor flaring",null,null,null,0]
["Equipment leaks from valves, pump seals, connectors, and other using leak detection",null,null,0,0]
["Equipment leaks from vapor recovery compressor using population counts",null,null,0,0]
["Flare stack and other destruction device emissions",null,null,null,0]
["Equipment and pipeline blowdowns",null,null,0,0]

{"sheet":"LNG import export","index":8,"n_rows":16,"n_cols":5,"rows_kept":16,"cut":false,"hidden":false,"merged":[[2,1,2,2]]}
["Liquefied Natural Gas Import and Export Equipment"]
[]
["Facility Name"]
[]
["Source Category","CO2 Emissions (tCO2)","CH4 Emissions (tCH4)","N2O Emissions (tN2O)","Total CO2e"]
["Total",{"$f":"SUM(B7:B16)","v":0},{"$f":"SUM(C7:C16)","v":0},{"$f":"SUM(D7:D16)","v":0},{"$f":"SUM(E7:E16)","v":0}]
["Reciprocating compressor venting (≥250hp)",null,null,0,{"$f":"B7+C7*21+D7*310","v":0}]
["Reciprocating compressor venting (<250hp)",null,null,0,0]
["Reciprocating compressor flaring",null,null,null,0]
["Centrifugal compressor venting (≥250hp)",null,null,0,0]
["Centrifugal compressor venting (<250hp)",null,null,0,0]
["Centrifugal compressor flaring",null,null,null,0]
["Equipment and pipeline blowdowns",null,null,0,0]
["Equipment leaks from valves, connectors, pump seals, and other using leak detection",null,null,0,0]
["Equipment leaks from vapor recovery compressor using population counts",null,null,0,0]
["Flare stack and other destruction device emissions",null,null,null,0]

{"sheet":"Nat gas distribution","index":9,"n_rows":16,"n_cols":4,"rows_kept":16,"cut":false,"hidden":false,"merged":[[2,1,2,2]]}
["Natural Gas Distribution"]
[]
["Facility Name"]
[]
["Source Category","CO2 Emissions (tCO2)","CH4 Emissions (tCH4)","Total CO2e"]
["Total",{"$f":"SUM(B7:B16)","v":0},{"$f":"SUM(C7:C16)","v":0},{"$f":"SUM(D7:D16)","v":0}]
["Equipment leaks from connectors, block valves, control valves, pressure relief valves, orifice meters, regulators, and open-ended lines at above grade transmission-distribution transfer stations",null,null,{"$f":"B7+C7*21","v":0}]
["Equipment leaks at below grade transmission-distribution transfer stations",null,null,0]
["Equipment leaks at above grade metering-regulating stations that are not above grade transmission-distribution transfer stations",null,null,0]
["Equipment leaks at below grade metering-regulating stations",null,null,0]
["Distribution main equipment leaks",null,null,0]
["Distribution services equipment leaks ",null,null,0]
["Flare stack emissions",null,null,0]
["Equipment and pipeline blowdowns",null,null,0]
["Emissions from customer meters",null,null,{"$f":"B15+C15*21","v":0}]
["Emissions from pipeline dig-ins",null,null,{"$f":"B16+C16*21","v":0}]